[Event "*** Titled Tuesday Blitz"]
[Site "Chess.com"]
[Date "2021.04.27"]
[Round "8"]
[White "poppy73"]
[Black "JoliyRoger"]
[Result "0-1"]
[WhiteElo "2183"]
[BlackElo "2394"]
[TimeControl "180+1"]
[EndTime "11:27:31 PDT"]
[Termination "JoliyRoger won on time"]

1. e4 {[%clk 0:03:00.9]} 1... c6 {[%clk 0:02:58.2]} 2. Nc3 {[%clk 0:02:59.4]}
2... d5 {[%clk 0:02:50.8]} 3. Nf3 {[%clk 0:02:59.2]} 3... Nf6 {[%clk 0:02:50.6]}
4. e5 {[%clk 0:02:52.1]} 4... Ne4 {[%clk 0:02:50.5]} 5. d4 {[%clk 0:02:52]} 5...
Nxc3 {[%clk 0:02:47.1]} 6. bxc3 {[%clk 0:02:51.6]} 6... Bg4 {[%clk 0:02:44.9]}
7. h3 {[%clk 0:02:30.7]} 7... Bxf3 {[%clk 0:02:44.3]} 8. Qxf3 {[%clk 0:02:30.3]}
8... e6 {[%clk 0:02:44.8]} 9. a4 {[%clk 0:02:25.8]} 9... Nd7 {[%clk 0:02:38.3]}
10. c4 {[%clk 0:02:17.5]} 10... dxc4 {[%clk 0:02:26.9]} 11. Bxc4 {[%clk
0:02:07.8]} 11... Nb6 {[%clk 0:02:26]} 12. Qd3 {[%clk 0:02:06]} 12... Nxc4
{[%clk 0:02:16.1]} 13. Qxc4 {[%clk 0:02:05.9]} 13... Qd5 {[%clk 0:02:16.7]} 14.
Qxd5 {[%clk 0:01:56.7]} 14... cxd5 {[%clk 0:02:17.3]} 15. Rb1 {[%clk 0:01:56.8]}
15... O-O-O {[%clk 0:02:05.4]} 16. Bd2 {[%clk 0:01:29.9]} 16... Be7 {[%clk
0:01:57.7]} 17. Ke2 {[%clk 0:01:28.1]} 17... Rd7 {[%clk 0:01:47]} 18. a5 {[%clk
0:01:27.3]} 18... Rc7 {[%clk 0:01:46.6]} 19. Kd3 {[%clk 0:01:26.6]} 19... Kd7
{[%clk 0:01:46.6]} 20. Rb2 {[%clk 0:01:22.3]} 20... Kc8 {[%clk 0:01:18.6]} 21.
Rhb1 {[%clk 0:01:13.4]} 21... Kb8 {[%clk 0:01:18.5]} 22. c3 {[%clk 0:00:49.6]}
22... Rhc8 {[%clk 0:01:15.1]} 23. Rb5 {[%clk 0:00:45.8]} 23... Rd7 {[%clk
0:01:13.8]} 24. R5b3 {[%clk 0:00:39.8]} 24... Rc6 {[%clk 0:01:13.9]} 25. Rb5
{[%clk 0:00:38.7]} 25... Bd8 {[%clk 0:01:13.1]} 26. R1b2 {[%clk 0:00:34.3]}
26... Kc8 {[%clk 0:01:04.1]} 27. Ra2 {[%clk 0:00:32]} 27... Bc7 {[%clk
0:00:44.6]} 28. Bc1 {[%clk 0:00:29.7]} 28... Rc4 {[%clk 0:00:31.8]} 29. Ba3
{[%clk 0:00:26.2]} 29... Ra4 {[%clk 0:00:30.9]} 30. Rb3 {[%clk 0:00:14.2]} 30...
Rxa5 {[%clk 0:00:28.7]} 31. Rab2 {[%clk 0:00:13.4]} 31... Bd8 {[%clk 0:00:26.2]}
32. Bb4 {[%clk 0:00:10.6]} 32... Ra6 {[%clk 0:00:26.5]} 33. Bc5 {[%clk
0:00:09.1]} 33... b6 {[%clk 0:00:24.7]} 34. Bd6 {[%clk 0:00:08.9]} 34... Ra4
{[%clk 0:00:24.7]} 35. Rb4 {[%clk 0:00:04.6]} 35... Rxb4 {[%clk 0:00:24.4]} 36.
cxb4 {[%clk 0:00:04.8]} 36... Be7 {[%clk 0:00:21.6]} 37. Rc2+ {[%clk 0:00:02]}
37... Kb7 {[%clk 0:00:22.1]} 38. Bxe7 {[%clk 0:00:02]} 38... Rxe7 {[%clk
0:00:22.7]} 39. b5 {[%clk 0:00:02.1]} 39... Rc7 {[%clk 0:00:22.5]} 40. Rxc7+
{[%clk 0:00:01.5]} 40... Kxc7 {[%clk 0:00:23.1]} 41. Kc3 {[%clk 0:00:01.9]}
41... Kb7 {[%clk 0:00:23.4]} 42. Kb4 {[%clk 0:00:01.7]} 42... a5+ {[%clk
0:00:23.5]} 0-1

[Event "*** Titled Tuesday Blitz"]
[Site "Chess.com"]
[Date "2021.04.27"]
[Round "8"]
[White "salomez"]
[Black "I_am_a_Miracle"]
[Result "0-1"]
[WhiteElo "2135"]
[BlackElo "2385"]
[TimeControl "180+1"]
[EndTime "11:27:33 PDT"]
[Termination "I_am_a_Miracle won on time"]

1. e4 {[%clk 0:03:00.9]} 1... g6 {[%clk 0:02:59.8]} 2. d4 {[%clk 0:03:00.7]}
2... Bg7 {[%clk 0:03:00]} 3. Nc3 {[%clk 0:02:59.5]} 3... d6 {[%clk 0:03:00]} 4.
Bc4 {[%clk 0:02:58.6]} 4... Nf6 {[%clk 0:02:55.8]} 5. Qe2 {[%clk 0:02:58.8]}
5... c6 {[%clk 0:02:45.1]} 6. e5 {[%clk 0:02:55.2]} 6... dxe5 {[%clk 0:02:43.1]}
7. dxe5 {[%clk 0:02:53.4]} 7... Nd5 {[%clk 0:02:43.3]} 8. Bd2 {[%clk 0:02:53.2]}
8... O-O {[%clk 0:02:33]} 9. O-O-O {[%clk 0:02:53.1]} 9... Be6 {[%clk
0:02:22.8]} 10. Nxd5 {[%clk 0:02:46.3]} 10... cxd5 {[%clk 0:02:22.4]} 11. Bb3
{[%clk 0:02:45]} 11... Qc7 {[%clk 0:02:20.3]} 12. f4 {[%clk 0:02:44.9]} 12... a5
{[%clk 0:02:18.7]} 13. a3 {[%clk 0:02:44.3]} 13... a4 {[%clk 0:02:04.6]} 14. Ba2
{[%clk 0:02:44]} 14... Nd7 {[%clk 0:01:57]} 15. Nf3 {[%clk 0:02:43.7]} 15...
Rfc8 {[%clk 0:01:52.9]} 16. Nd4 {[%clk 0:02:43.5]} 16... Bf5 {[%clk 0:01:48]}
17. Bb4 {[%clk 0:02:37]} 17... Be4 {[%clk 0:01:36.4]} 18. Kb1 {[%clk 0:02:16.7]}
18... e6 {[%clk 0:01:20.1]} 19. Rhe1 {[%clk 0:02:15.8]} 19... Nc5 {[%clk
0:01:14.9]} 20. Nb5 {[%clk 0:02:08.7]} 20... Qb6 {[%clk 0:01:08.2]} 21. Nd6
{[%clk 0:02:07.5]} 21... Rc6 {[%clk 0:00:59.8]} 22. Bxc5 {[%clk 0:02:07.2]}
22... Rxc5 {[%clk 0:00:51.6]} 23. Nxe4 {[%clk 0:02:04.8]} 23... dxe4 {[%clk
0:00:49.5]} 24. Qxe4 {[%clk 0:02:05.7]} 24... Rac8 {[%clk 0:00:48.7]} 25. Re2
{[%clk 0:01:01.6]} 25... Rb5 {[%clk 0:00:46.9]} 26. c4 {[%clk 0:00:58.2]} 26...
Rbc5 {[%clk 0:00:33.3]} 27. Rd6 {[%clk 0:00:57.6]} 27... Qc7 {[%clk 0:00:28.7]}
28. Red2 {[%clk 0:00:51]} 28... b5 {[%clk 0:00:22.7]} 29. Rd7 {[%clk 0:00:47.6]}
29... Qa5 {[%clk 0:00:22.7]} 30. Qb7 {[%clk 0:00:41.1]} 30... Bf8 {[%clk
0:00:19.8]} 31. Qa7 {[%clk 0:00:19.6]} 31... Qxa7 {[%clk 0:00:16.4]} 32. Rxa7
{[%clk 0:00:19.4]} 32... bxc4 {[%clk 0:00:16.8]} 33. Rdd7 {[%clk 0:00:19.8]}
33... c3 {[%clk 0:00:16.3]} 34. bxc3 {[%clk 0:00:16.6]} 34... Rxc3 {[%clk
0:00:15.9]} 35. Rxa4 {[%clk 0:00:09.1]} 35... Rc1+ {[%clk 0:00:13.9]} 36. Kb2
{[%clk 0:00:09.4]} 36... R8c2+ {[%clk 0:00:13.7]} 37. Kb3 {[%clk 0:00:09.3]}
37... Rc3+ {[%clk 0:00:13.2]} 38. Kb2 {[%clk 0:00:05.8]} 38... R1c2+ {[%clk
0:00:13.3]} 39. Kb1 {[%clk 0:00:05.2]} 39... Rxg2 {[%clk 0:00:13.4]} 40. Raa7
{[%clk 0:00:02.5]} 40... Rf3 {[%clk 0:00:11.8]} 0-1

[Event "*** Titled Tuesday Blitz"]
[Site "Chess.com"]
[Date "2021.04.27"]
[Round "8"]
[White "Iskusnyh"]
[Black "MPGM"]
[Result "0-1"]
[WhiteElo "2592"]
[BlackElo "2499"]
[TimeControl "180+1"]
[EndTime "11:27:38 PDT"]
[Termination "MPGM won on time"]

1. d4 {[%clk 0:03:00.9]} 1... d5 {[%clk 0:02:59.4]} 2. c4 {[%clk 0:03:01.1]}
2... e6 {[%clk 0:03:00]} 3. Nf3 {[%clk 0:03:00.4]} 3... c5 {[%clk 0:02:59.8]} 4.
cxd5 {[%clk 0:02:59.7]} 4... exd5 {[%clk 0:03:00.7]} 5. g3 {[%clk 0:03:00.1]}
5... Nf6 {[%clk 0:03:00.4]} 6. Bg2 {[%clk 0:03:00.5]} 6... Nc6 {[%clk 0:03:01]}
7. O-O {[%clk 0:02:59.3]} 7... Be7 {[%clk 0:03:01.6]} 8. dxc5 {[%clk 0:02:59.3]}
8... Bxc5 {[%clk 0:03:02.5]} 9. a3 {[%clk 0:02:55]} 9... Ne4 {[%clk 0:03:01.3]}
10. Nfd2 {[%clk 0:02:52.8]} 10... f5 {[%clk 0:02:52.9]} 11. Nc3 {[%clk
0:02:47.1]} 11... Be6 {[%clk 0:02:49.1]} 12. Ndxe4 {[%clk 0:02:42.4]} 12... dxe4
{[%clk 0:02:45.7]} 13. Bf4 {[%clk 0:02:20.4]} 13... O-O {[%clk 0:02:39.4]} 14.
Rc1 {[%clk 0:02:18.7]} 14... Qe7 {[%clk 0:02:16.6]} 15. Nd5 {[%clk 0:01:56.3]}
15... Qf7 {[%clk 0:01:49]} 16. Rxc5 {[%clk 0:01:55.1]} 16... Rfd8 {[%clk
0:01:48.9]} 17. Bd6 {[%clk 0:01:07.5]} 17... Kh8 {[%clk 0:00:57.4]} 18. Nf4
{[%clk 0:01:01.4]} 18... Rd7 {[%clk 0:00:51.1]} 19. f3 {[%clk 0:00:20.2]} 19...
exf3 {[%clk 0:00:37.9]} 20. Rxf3 {[%clk 0:00:18.3]} 20... Rad8 {[%clk
0:00:37.8]} 21. Rd3 {[%clk 0:00:18.3]} 21... Bc4 {[%clk 0:00:19.9]} 22. Bxc6
{[%clk 0:00:16.3]} 22... bxc6 {[%clk 0:00:18.8]} 23. Rd4 {[%clk 0:00:16.1]}
23... Bb3 {[%clk 0:00:15.1]} 24. Qd2 {[%clk 0:00:15]} 24... Qf6 {[%clk
0:00:13.2]} 25. e3 {[%clk 0:00:13.6]} 25... Rxd6 {[%clk 0:00:13.1]} 26. Rxd6
{[%clk 0:00:11.6]} 26... Rxd6 {[%clk 0:00:12.1]} 27. Qb4 {[%clk 0:00:10.3]}
27... Bg8 {[%clk 0:00:08]} 28. Rc1 {[%clk 0:00:09.1]} 28... Qe5 {[%clk
0:00:04.1]} 29. Qc5 {[%clk 0:00:07.8]} 29... Qe7 {[%clk 0:00:02.6]} 30. Kg2
{[%clk 0:00:06.2]} 30... Rd2+ {[%clk 0:00:02.4]} 31. Kg1 {[%clk 0:00:05.2]}
31... Qe4 {[%clk 0:00:02.9]} 32. Qxc6 {[%clk 0:00:04.6]} 32... Rd1+ {[%clk
0:00:01.9]} 33. Kf2 {[%clk 0:00:04.1]} 33... Rd2+ {[%clk 0:00:01.9]} 34. Ne2
{[%clk 0:00:03.7]} 34... Qd3 {[%clk 0:00:01.4]} 35. Re1 {[%clk 0:00:02.3]} 35...
Rxb2 {[%clk 0:00:02]} 36. Qe8 {[%clk 0:00:01.4]} 36... Qxa3 {[%clk 0:00:02.2]}
37. Qe5 {[%clk 0:00:01.2]} 37... Qa2 {[%clk 0:00:02.4]} 0-1

[Event "*** Titled Tuesday Blitz"]
[Site "Chess.com"]
[Date "2021.04.27"]
[Round "8"]
[White "Andreikka"]
[Black "tapu2"]
[Result "1-0"]
[WhiteElo "2882"]
[BlackElo "2725"]
[TimeControl "180+1"]
[EndTime "11:27:40 PDT"]
[Termination "Andreikka won by resignation"]

1. d4 {[%clk 0:02:43.5]} 1... Nf6 {[%clk 0:02:59.5]} 2. c4 {[%clk 0:02:44.4]}
2... e6 {[%clk 0:02:59.5]} 3. Nc3 {[%clk 0:02:45.3]} 3... Bb4 {[%clk 0:02:58.8]}
4. a3 {[%clk 0:02:44.3]} 4... Bxc3+ {[%clk 0:02:58.3]} 5. bxc3 {[%clk
0:02:45.2]} 5... c5 {[%clk 0:02:57.8]} 6. f3 {[%clk 0:02:46.1]} 6... Nc6 {[%clk
0:02:52]} 7. e4 {[%clk 0:02:46.3]} 7... d6 {[%clk 0:02:52.5]} 8. Bd3 {[%clk
0:02:44.5]} 8... cxd4 {[%clk 0:02:51.4]} 9. Ne2 {[%clk 0:02:44.3]} 9... dxc3
{[%clk 0:02:50.7]} 10. Be3 {[%clk 0:02:44.7]} 10... Ne5 {[%clk 0:02:15.3]} 11.
Nxc3 {[%clk 0:02:43.6]} 11... Bd7 {[%clk 0:02:15.5]} 12. O-O {[%clk 0:02:41.9]}
12... O-O {[%clk 0:02:15.4]} 13. Be2 {[%clk 0:02:37.2]} 13... Rc8 {[%clk
0:02:09.8]} 14. Nb5 {[%clk 0:02:33.2]} 14... Bxb5 {[%clk 0:02:07.3]} 15. cxb5
{[%clk 0:02:31.5]} 15... b6 {[%clk 0:02:06.8]} 16. Qa4 {[%clk 0:02:21.5]} 16...
d5 {[%clk 0:01:47.8]} 17. Rfd1 {[%clk 0:02:22.4]} 17... Qe7 {[%clk 0:01:37.2]}
18. Bd4 {[%clk 0:02:15.7]} 18... Nc4 {[%clk 0:01:34]} 19. e5 {[%clk 0:02:14.2]}
19... Nh5 {[%clk 0:01:29.5]} 20. g3 {[%clk 0:02:12.2]} 20... f6 {[%clk
0:01:24.2]} 21. exf6 {[%clk 0:01:47.1]} 21... Nxf6 {[%clk 0:01:23.6]} 22. Qb3
{[%clk 0:01:47.7]} 22... Qf7 {[%clk 0:01:07.8]} 23. a4 {[%clk 0:01:45.3]} 23...
e5 {[%clk 0:00:56.2]} 24. Bf2 {[%clk 0:01:43]} 24... d4 {[%clk 0:00:49.7]} 25.
Rac1 {[%clk 0:01:19.9]} 25... Na5 {[%clk 0:00:49.2]} 26. Qxf7+ {[%clk
0:01:17.8]} 26... Kxf7 {[%clk 0:00:49.3]} 27. f4 {[%clk 0:01:18.3]} 27... Ne4
{[%clk 0:00:41.7]} 28. fxe5 {[%clk 0:01:11.7]} 28... Nc3 {[%clk 0:00:31.2]} 29.
Bg4 {[%clk 0:00:57.9]} 29... Rc4 {[%clk 0:00:20.4]} 30. Rf1 {[%clk 0:00:16.6]}
30... Ke7 {[%clk 0:00:19.9]} 31. Kg2 {[%clk 0:00:08.1]} 31... d3 {[%clk
0:00:20.2]} 32. Bf3 {[%clk 0:00:02.5]} 32... d2 {[%clk 0:00:20.5]} 33. Rcd1
{[%clk 0:00:01.4]} 33... Rxf3 {[%clk 0:00:21]} 34. Kxf3 {[%clk 0:00:01.4]} 34...
Nb3 {[%clk 0:00:21.7]} 35. Be3 {[%clk 0:00:01.5]} 35... Nxd1 {[%clk 0:00:20.5]}
36. Rxd1 {[%clk 0:00:02.4]} 36... Rc1 {[%clk 0:00:21.1]} 37. Ke2 {[%clk
0:00:02.6]} 37... Rc2 {[%clk 0:00:20.4]} 38. Kd3 {[%clk 0:00:02.7]} 38... Ra2
{[%clk 0:00:20.3]} 39. Kc3 {[%clk 0:00:02.9]} 39... Nc5 {[%clk 0:00:19.9]} 40.
Bxc5+ {[%clk 0:00:03.5]} 40... bxc5 {[%clk 0:00:19.9]} 41. Kb3 {[%clk 0:00:04]}
41... c4+ {[%clk 0:00:13.8]} 42. Kxa2 {[%clk 0:00:04.3]} 42... c3 {[%clk
0:00:14.4]} 43. Kb3 {[%clk 0:00:05]} 1-0

[Event "*** Titled Tuesday Blitz"]
[Site "Chess.com"]
[Date "2021.04.27"]
[Round "8"]
[White "Zhigalko_Sergei"]
[Black "Vanina1989"]
[Result "0-1"]
[WhiteElo "2935"]
[BlackElo "2825"]
[TimeControl "180+1"]
[EndTime "11:27:41 PDT"]
[Termination "Vanina1989 won on time"]

1. e4 {[%clk 0:03:00.9]} 1... c6 {[%clk 0:03:00.2]} 2. d4 {[%clk 0:03:00.6]}
2... d5 {[%clk 0:03:00.6]} 3. e5 {[%clk 0:03:01]} 3... c5 {[%clk 0:03:00.2]} 4.
Nf3 {[%clk 0:03:01.2]} 4... Nc6 {[%clk 0:03:00.1]} 5. dxc5 {[%clk 0:03:01.5]}
5... Bg4 {[%clk 0:02:56.2]} 6. c3 {[%clk 0:02:59.3]} 6... e6 {[%clk 0:02:56.1]}
7. Be3 {[%clk 0:02:59.5]} 7... Bxf3 {[%clk 0:02:41.3]} 8. Qxf3 {[%clk
0:02:59.5]} 8... Nxe5 {[%clk 0:02:39.9]} 9. Bb5+ {[%clk 0:02:59.9]} 9... Nc6
{[%clk 0:02:40]} 10. O-O {[%clk 0:02:59.8]} 10... Qc7 {[%clk 0:02:39.6]} 11. c4
{[%clk 0:02:58]} 11... a6 {[%clk 0:02:20.3]} 12. Ba4 {[%clk 0:02:58.1]} 12...
Nf6 {[%clk 0:01:50.4]} 13. Nc3 {[%clk 0:02:57.1]} 13... dxc4 {[%clk 0:01:48.3]}
14. Bf4 {[%clk 0:02:57.1]} 14... Qc8 {[%clk 0:01:42.6]} 15. Be3 {[%clk 0:02:49]}
15... Be7 {[%clk 0:01:40.3]} 16. Qf4 {[%clk 0:02:45.3]} 16... O-O {[%clk
0:01:36.2]} 17. Qxc4 {[%clk 0:02:45]} 17... Ne5 {[%clk 0:01:35.7]} 18. Qf4
{[%clk 0:02:22.5]} 18... Ng6 {[%clk 0:01:34.3]} 19. Qb4 {[%clk 0:02:14.4]} 19...
b5 {[%clk 0:01:32.8]} 20. Bc2 {[%clk 0:01:55.3]} 20... Rb8 {[%clk 0:01:31.9]}
21. Bxg6 {[%clk 0:01:35.7]} 21... hxg6 {[%clk 0:01:31.3]} 22. Rfc1 {[%clk
0:01:36.4]} 22... Qc6 {[%clk 0:01:30.9]} 23. Ne2 {[%clk 0:01:05.7]} 23... Nd5
{[%clk 0:01:23.8]} 24. Qe4 {[%clk 0:01:01.7]} 24... Rfc8 {[%clk 0:01:21.7]} 25.
b4 {[%clk 0:00:54.6]} 25... f5 {[%clk 0:01:13.8]} 26. Qb1 {[%clk 0:00:43.3]}
26... Bf6 {[%clk 0:01:11.9]} 27. Bd4 {[%clk 0:00:37.8]} 27... e5 {[%clk
0:01:10.9]} 28. Bc3 {[%clk 0:00:31.5]} 28... Nxc3 {[%clk 0:01:02]} 29. Nxc3
{[%clk 0:00:29]} 29... e4 {[%clk 0:01:02.4]} 30. Qb3+ {[%clk 0:00:28.9]} 30...
Kh7 {[%clk 0:01:02.3]} 31. Rd1 {[%clk 0:00:28.6]} 31... Rd8 {[%clk 0:00:54.5]}
32. Rac1 {[%clk 0:00:21.9]} 32... Be5 {[%clk 0:00:40.6]} 33. Nd5 {[%clk
0:00:21.4]} 33... Qe6 {[%clk 0:00:28.7]} 34. f4 {[%clk 0:00:20]} 34... Bf6
{[%clk 0:00:25.7]} 35. c6 {[%clk 0:00:16.9]} 35... Rbc8 {[%clk 0:00:23.2]} 36.
c7 {[%clk 0:00:17.3]} 36... Rd6 {[%clk 0:00:22.3]} 37. Nxf6+ {[%clk 0:00:09.8]}
37... Qxf6 {[%clk 0:00:22.3]} 38. Rxd6 {[%clk 0:00:03.6]} 38... Qxd6 {[%clk
0:00:22]} 39. Qc3 {[%clk 0:00:04.1]} 39... Qxf4 {[%clk 0:00:21.2]} 40. g3 {[%clk
0:00:03]} 40... Qd6 {[%clk 0:00:20.5]} 41. Qc5 {[%clk 0:00:03.2]} 41... Qd2
{[%clk 0:00:20.1]} 42. Rc2 {[%clk 0:00:03.2]} 42... Qd1+ {[%clk 0:00:20.1]} 43.
Kg2 {[%clk 0:00:03.4]} 43... Qf3+ {[%clk 0:00:20.4]} 44. Kg1 {[%clk 0:00:02.6]}
44... e3 {[%clk 0:00:20.9]} 45. Qc3 {[%clk 0:00:02.3]} 45... Qd1+ {[%clk
0:00:18.5]} 46. Kg2 {[%clk 0:00:01.5]} 46... e2 {[%clk 0:00:19]} 47. Kf2 {[%clk
0:00:01.8]} 47... Qf1+ {[%clk 0:00:18.7]} 0-1

[Event "*** Titled Tuesday Blitz"]
[Site "Chess.com"]
[Date "2021.04.27"]
[Round "8"]
[White "IANOV0007"]
[Black "ErikBlomqvist"]
[Result "1-0"]
[WhiteElo "2485"]
[BlackElo "2573"]
[TimeControl "180+1"]
[EndTime "11:27:43 PDT"]
[Termination "IANOV0007 won by resignation"]

1. Nf3 {[%clk 0:03:00.9]} 1... c5 {[%clk 0:02:59.8]} 2. g3 {[%clk 0:03:00.6]}
2... Nc6 {[%clk 0:02:59.9]} 3. Bg2 {[%clk 0:03:00.6]} 3... g6 {[%clk 0:03:00.5]}
4. c4 {[%clk 0:03:00.4]} 4... Bg7 {[%clk 0:03:00.6]} 5. Nc3 {[%clk 0:03:00.4]}
5... d6 {[%clk 0:03:01]} 6. O-O {[%clk 0:03:00.1]} 6... Bf5 {[%clk 0:03:01.5]}
7. h3 {[%clk 0:02:59.3]} 7... Nf6 {[%clk 0:02:59]} 8. d3 {[%clk 0:02:58.8]} 8...
O-O {[%clk 0:02:55.9]} 9. e4 {[%clk 0:02:57.8]} 9... Bd7 {[%clk 0:02:51.7]} 10.
Be3 {[%clk 0:02:57.6]} 10... a6 {[%clk 0:02:39.6]} 11. d4 {[%clk 0:02:56.2]}
11... cxd4 {[%clk 0:02:36]} 12. Nxd4 {[%clk 0:02:55.4]} 12... Nxd4 {[%clk
0:02:34.7]} 13. Bxd4 {[%clk 0:02:54.7]} 13... Qc8 {[%clk 0:02:35.1]} 14. Bxf6
{[%clk 0:02:38]} 14... Bxf6 {[%clk 0:02:03.2]} 15. Nd5 {[%clk 0:02:37]} 15...
Bxh3 {[%clk 0:01:58.3]} 16. Nb6 {[%clk 0:02:35.1]} 16... Qe6 {[%clk 0:01:57.3]}
17. Nxa8 {[%clk 0:02:32.5]} 17... Rxa8 {[%clk 0:01:58.2]} 18. Qd5 {[%clk
0:02:26.2]} 18... Bxg2 {[%clk 0:01:29.6]} 19. Kxg2 {[%clk 0:02:18]} 19... Rc8
{[%clk 0:01:03.2]} 20. Rac1 {[%clk 0:02:10.5]} 20... Qd7 {[%clk 0:00:47.2]} 21.
b3 {[%clk 0:02:07.3]} 21... Rc5 {[%clk 0:00:46.7]} 22. Qd3 {[%clk 0:02:04.2]}
22... h5 {[%clk 0:00:41]} 23. f4 {[%clk 0:01:45.3]} 23... h4 {[%clk 0:00:34.4]}
24. Rh1 {[%clk 0:01:41.7]} 24... Rh5 {[%clk 0:00:28.1]} 25. Rh3 {[%clk
0:01:31.6]} 25... hxg3 {[%clk 0:00:18.9]} 26. Rxh5 {[%clk 0:01:27.8]} 26... gxh5
{[%clk 0:00:19.8]} 27. Qxg3+ {[%clk 0:01:25.7]} 27... Kf8 {[%clk 0:00:20.4]} 28.
Rh1 {[%clk 0:01:21.4]} 28... h4 {[%clk 0:00:17.9]} 29. Qh3 {[%clk 0:01:20.3]}
29... Qc6 {[%clk 0:00:18.1]} 30. Qf3 {[%clk 0:01:19.3]} 30... Ke8 {[%clk
0:00:16.1]} 31. e5 {[%clk 0:01:17.4]} 31... Qxf3+ {[%clk 0:00:13.7]} 32. Kxf3
{[%clk 0:01:17.2]} 32... dxe5 {[%clk 0:00:14.6]} 33. fxe5 {[%clk 0:01:16.8]}
33... Bxe5 {[%clk 0:00:15.5]} 34. Rxh4 {[%clk 0:01:16.7]} 34... Bd6 {[%clk
0:00:15.5]} 35. Ke4 {[%clk 0:01:13.6]} 35... Kd7 {[%clk 0:00:15]} 36. Rh7 {[%clk
0:01:11.8]} 36... Ke6 {[%clk 0:00:13.8]} 37. Rh5 {[%clk 0:01:10.6]} 37... b6
{[%clk 0:00:12.2]} 38. Kd4 {[%clk 0:01:06.7]} 38... a5 {[%clk 0:00:07.7]} 39.
Ke4 {[%clk 0:01:06]} 39... Kd7 {[%clk 0:00:06]} 40. Rh7 {[%clk 0:01:03.5]} 40...
Ke6 {[%clk 0:00:03.3]} 41. Rh6+ {[%clk 0:01:03.3]} 41... f6 {[%clk 0:00:03.1]}
42. Rh5 {[%clk 0:01:02.9]} 42... Kd7 {[%clk 0:00:03.3]} 43. Rd5 {[%clk
0:01:01.3]} 43... Ke6 {[%clk 0:00:03.2]} 44. Rh5 {[%clk 0:00:59.2]} 44... Kd7
{[%clk 0:00:03.6]} 45. Kd5 {[%clk 0:00:56.6]} 45... e6+ {[%clk 0:00:03.7]} 46.
Kd4 {[%clk 0:00:56.3]} 46... Kc6 {[%clk 0:00:03]} 47. Rh7 {[%clk 0:00:54.1]}
47... f5 {[%clk 0:00:01.9]} 48. Rf7 {[%clk 0:00:52]} 48... e5+ {[%clk
0:00:02.8]} 49. Kd3 {[%clk 0:00:51.1]} 49... e4+ {[%clk 0:00:02.8]} 50. Kd4
{[%clk 0:00:50.6]} 50... Bc5+ {[%clk 0:00:02.5]} 51. Kc3 {[%clk 0:00:49.4]}
51... Bb4+ {[%clk 0:00:02.3]} 52. Kc2 {[%clk 0:00:48.7]} 52... e3 {[%clk
0:00:02.4]} 53. Kd3 {[%clk 0:00:47.3]} 53... Bc5 {[%clk 0:00:01.8]} 54. Rxf5
{[%clk 0:00:46.9]} 54... Kd6 {[%clk 0:00:02.4]} 55. Rf3 {[%clk 0:00:45.6]} 55...
Ke5 {[%clk 0:00:02.7]} 56. Rh3 {[%clk 0:00:44.9]} 56... Kf4 {[%clk 0:00:02.8]}
57. Ke2 {[%clk 0:00:44.8]} 57... Ke4 {[%clk 0:00:03.1]} 58. Rh4+ {[%clk
0:00:44.1]} 58... Ke5 {[%clk 0:00:03.6]} 59. Kf3 {[%clk 0:00:44.1]} 59... Bd4
{[%clk 0:00:03.2]} 60. Re4+ {[%clk 0:00:43.4]} 1-0